[Event "French-ch U12-U14 2024"]
[Site "Agen"]
[Date "2024.04.18"]
[Round "6.10"]
[White "Menager, Steven"]
[Black "Bocquenet-Drouode, Hugo"]
[Result "1/2-1/2"]
[ECO "B59"]
[WhiteElo "1800"]
[BlackElo "1974"]
[Annotator "TA"]
[PlyCount "56"]
[EventDate "2024.04.14"]
[EventType "swiss"]
[EventCountry "FRA"]
[SourceTitle "playchess.com"]
[Source "ChessBase"]
[SourceQuality "1"]
[TimeControl "5400+30"]

{[%evp 15,56,0,25,-24,-30,-27,-19,-20,-14,-13,-12,-15,-5,-22,-10,-17,8,0,0,-2,0,0,19,13,14,18,18,0,0,0,0,0,0,0,0,0,0,0,0,0,0,0,0]} 1. e4 {[%emt 0:00:01]} c5 {[%emt 0:00:09]} 2. Nf3 {[%emt 0:00:06]} Nc6 {[%emt 0:00:04]} 3. d4 {[%emt 0:00:42]} cxd4 {[%emt 0:00:07]} 4. Nxd4 {[%emt 0:00:03]} Nf6 {[%emt 0:00:14]} 5. Nc3 {[%emt 0:00:26]} d6 {[%emt 0:00:09]} 6. Be2 {[%emt 0:01:21]} e5 {[%emt 0:00:09]} 7. Nb3 {[%emt 0:00:39]} Be7 {[%emt 0:00:09]} 8. Bg5 {[%emt 0:06:56]} Nxe4 {[%emt 0:03:55]} 9. Bxe7 {[%emt 0:06:37]} (9. Nxe4 $142 Bxg5 10. Nxd6+ Ke7 11. Nxc8+ Rxc8 12. h4) 9... Nxc3 $11 {[%emt 0:00:05]} 10. Bxd8 {[%emt 0:00:08]} Nxd1 {[%emt 0:00:08]} 11. Rxd1 {[%emt 0:00:09] The position is equal.} Kxd8 {[%emt 0:00:06]} 12. Rxd6+ {[%emt 0:00:23]} Ke7 {[%emt 0:00:14]} 13. Rd2 {[%emt 0:00:26]} Bf5 {[%emt 0:01:05]} 14. O-O {[%emt 0:04:41]} Rac8 {[%emt 0:03:07]} 15. c3 {[%emt 0:01:08]} b6 {[%emt 0:02:19]} 16. Ba6 {[%emt 0:05:29]} Rcd8 {[%emt 0:01:02]} 17. Bb5 {[%emt 0:07:59]} Rxd2 {[%emt 0:00:46]} 18. Nxd2 {[%emt 0:00:05]} Nb8 {[%emt 0:00:44]} 19. Re1 {[%emt 0:07:46]} Kf6 {[%emt 0:08:12]} 20. Nf3 {[%emt 0:10:39]} a6 {[%emt 0:01:09]} 21. Ba4 {[%emt 0:08:45]} b5 {[%emt 0:00:33]} 22. Bb3 {[%emt 0:00:08]} Nd7 {[%emt 0:10:22]} 23. Rd1 {[%emt 0:05:47]} Ke7 {[%emt 0:02:44] Repels Rd6} 24. Re1 {[%emt 0:03:01]} Kf6 {[%emt 0:10:00]} 25. Rd1 {[%emt 0:01:50]} Ke7 {[%emt 0:00:10] Against Rd6} 26. Re1 {[%emt 0:00:23]} Kf6 {[%emt 0:00:12]} 27. Rd1 {[%emt 0:00:07]} Ke7 {[%emt 0:00:13] Against Rd6} 28. Re1 {[%emt 0:00:18]} Kf6 {[%emt 0:00:08] A rather calm draw.   Weighted Error Value: White=0.07 (flawless) /Black=0.05 (flawless) .  OK:         	White=11    	Black=9      Best:        	White=1     	Black=2} 1/2-1/2

[Event "French-ch U12-U14 2024"]
[Site "Agen"]
[Date "2024.04.18"]
[Round "6.11"]
[White "Ourry, Elina"]
[Black "Bernard, Ines"]
[Result "0-1"]
[ECO "D45"]
[WhiteElo "1678"]
[BlackElo "1981"]
[Annotator "TA"]
[PlyCount "112"]
[EventDate "2024.04.14"]
[EventType "swiss"]
[EventCountry "FRA"]
[SourceTitle "playchess.com"]
[Source "ChessBase"]
[SourceQuality "1"]
[TimeControl "5400+30"]

{[%evp 11,112,12,16,-12,-14,-7,0,0,-4,-87,-93,-123,-125,-209,-211,-201,-32,-36,-38,-41,-8,-3,37,-10,-11,-11,-31,-14,-11,-27,-23,-29,-32,-28,-31,-27,-27,-39,-30,-39,-51,-102,-103,-101,-111,-128,-131,-150,-157,-150,-138,-202,-188,-237,-235,-245,-239,-273,-272,-307,-293,-295,-249,-336,-291,-376,-277,-386,-355,-440,-353,-433,-443,-482,-508,-554,-545,-827,-821,-887,-848,-946,-1164,-1274,-850,-1181,-760,-1276,-949,-1339,-269,-877,0,-5441,-4444,-2681,-1261,-3396,-2482,-5279,-4622,-29981,-29982]} 1. d4 {[%emt 0:00:06]} d5 {[%emt 0:00:04]} 2. c4 {[%emt 0:00:19]} c6 {[%emt 0:00:04]} 3. Nf3 {[%emt 0:00:10]} Nf6 {[%emt 0:00:05]} 4. Nc3 {[%emt 0:00:10]} a6 {[%emt 0:00:05]} 5. e3 {[%emt 0:00:36]} e6 {[%emt 0:02:32]} 6. Qc2 {[%emt 0:02:59]} Nbd7 {[%emt 0:01:47]} 7. Bd3 {[%emt 0:01:53]} dxc4 {[%emt 0:01:33]} 8. Bxc4 {[%emt 0:00:46]} b5 {[%emt 0:00:53]} 9. Bd3 {[%emt 0:03:49] The position is equal.} c5 {[%emt 0:02:03]} 10. b3 {[%emt 0:04:22]} (10. a4 $11) 10... Bb7 $17 {[%emt 0:04:11] Hoping for ...cxd4.} 11. Ne4 {[%emt 0:22:19]} Rc8 {[%emt 0:04:29] White must now prevent ...Nxe4.} 12. Qb1 {[%emt 0:04:30]} (12. O-O $17) 12... cxd4 $19 {[%emt 0:08:14]} 13. O-O {[%emt 0:06:27] [#]} Bb4 $2 {[%emt 0:10:01]} (13... Bxe4 $1 $19 14. Bxe4 Nc5) 14. Nxd4 $15 {[%emt 0:18:35]} (14. Nxf6+ Nxf6 15. a4 Bxf3 16. gxf3 Qd5 17. axb5 axb5 $19) 14... Bxe4 {[%emt 0:12:07]} 15. Bxe4 {[%emt 0:00:17]} Bc3 {[%emt 0:01:00]} 16. Bb7 {[%emt 0:01:06][%csl LRa6,LRc8]} Bxa1 {[%emt 0:00:13]} 17. Bxc8 {[%emt 0:01:04]} (17. Qxa1 $14 O-O 18. Bxc8 (18. Bxa6 Rc5 $14) 18... Qxc8 19. Ba3) 17... Bxd4 $11 {[%emt 0:00:13]} 18. Bxd7+ {[%emt 0:00:29]} Nxd7 {[%emt 0:00:23]} 19. exd4 {[%emt 0:00:58]} O-O {[%emt 0:00:29]} 20. Bb2 {[%emt 0:03:06]} Nb6 {[%emt 0:04:21]} 21. Qe4 {[%emt 0:04:55]} Nd5 {[%emt 0:03:18]} 22. Rc1 {[%emt 0:07:52]} h6 {[%emt 0:02:06]} 23. h3 {[%emt 0:01:22]} Qg5 {[%emt 0:04:33]} 24. a3 {[%emt 0:05:02]} Rd8 {[%emt 0:04:06]} 25. Rc5 {[%emt 0:01:42]} Qd2 {[%emt 0:00:20]} 26. Rc2 {[%emt 0:01:06] White is on the road to losing.} (26. Qc2 $15 Qe1+ 27. Kh2) 26... Qd1+ $17 {[%emt 0:04:50]} 27. Kh2 {[%emt 0:00:02] [#]} Nf4 $1 $36 {[%emt 0:02:33][%mdl 2560] White is under strong pressure.} 28. b4 {[%emt 0:06:17]} (28. Rc1 Qxb3) 28... Nd3 {[%emt 0:04:48] Against Rc1. Black has more active pieces.} 29. Qe2 {[%emt 0:02:02]} Nxb2 {[%emt 0:02:04]} 30. Rxb2 {[%emt 0:00:28]} Qxd4 {[%emt 0:00:21][%mdl 4096] Endgame. KQR-KQR} 31. Rc2 {[%emt 0:00:36]} (31. Rb3 $17 {was worth a try.}) 31... Qd3 $19 {[%emt 0:00:24]} 32. Qxd3 {[%emt 0:00:31]} (32. Ra2 {is a better defense.}) 32... Rxd3 {[%emt 0:00:02] KR-KR} 33. Ra2 {[%emt 0:00:33]} Kh7 {[%emt 0:00:19]} 34. g3 {[%emt 0:00:28]} Kg6 {[%emt 0:00:11]} 35. h4 {[%emt 0:00:23]} Kf5 {[%emt 0:00:47]} 36. Kg2 {[%emt 0:00:36]} h5 {[%emt 0:00:29]} 37. Kf1 {[%emt 0:00:27]} Ke4 {[%emt 0:01:15]} 38. Ke2 {[%emt 0:00:36]} f6 {[%emt 0:02:56]} 39. Ra1 {[%emt 0:00:26]} e5 {[%emt 0:00:57]} 40. Ra2 {[%emt 0:00:22]} g6 {[%emt 0:02:16]} 41. Ra1 {[%emt 0:00:18]} f5 {[%emt 0:00:19]} 42. Ra2 {[%emt 0:00:36]} f4 {[%emt 0:00:17]} 43. gxf4 {[%emt 0:00:36]} exf4 {[%emt 0:00:06]} 44. Rc2 {[%emt 0:00:42]} Rxa3 {[%emt 0:01:12]} 45. Rc6 {[%emt 0:00:18]} Ra2+ {[%emt 0:00:06]} 46. Kf1 {[%emt 0:00:33]} Kf3 {[%emt 0:00:19]} 47. Rc3+ {[%emt 0:00:11]} Kg4 {[%emt 0:00:30]} 48. Rc6 {[%emt 0:00:23]} f3 {[%emt 0:03:44] ( -> ...Ra1+)} 49. Rxg6+ {[%emt 0:00:57]} Kxh4 {[%emt 0:00:01][%cal Ra2a1]} 50. Kg1 {[%emt 0:00:37]} Ra1+ {[%emt 0:01:01]} 51. Kh2 {[%emt 0:00:07][%cal Og6g4]} Rf1 $2 {[%emt 0:00:14]} (51... Ra4 $19 52. Rg3 Rxb4 53. Rxf3 a5 54. Rh3+ Kg5) 52. Rxa6 $2 {[%emt 0:00:28][%mdl 8192]} (52. Rg4+ $11 Kxg4) 52... Rxf2+ {[%emt 0:00:04]} 53. Kg1 {[%emt 0:00:10]} Rb2 {[%emt 0:00:11][%cal Oh4g3] Strongly threatening ...Kg3!} 54. Rf6 {[%emt 0:00:21]} Kg4 {[%emt 0:00:17]} ({Weaker is} 54... Rxb4 55. Rxf3 Kg5 56. Rd3 $17) 55. Rg6+ {[%emt 0:00:22]} Kf5 {[%emt 0:00:05]} 56. Rg8 {[%emt 0:00:12]} Rg2+ {[%emt 0:00:25] Weighted Error Value: White=0.44/Black=0.31.  Loses game:     	White=1     	---        Missed win:     	---       	Black=1      Mistake:       	White=6     	---        Inaccurate:     	White=4     	Black=2      OK:         	White=11    	Black=19     Best:        	White=1     	Black=2} 0-1

[Event "French-ch U12-U14 2024"]
[Site "Agen"]
[Date "2024.04.18"]
[Round "6.14"]
[White "Dubin, Lisa"]
[Black "Rachid, Natalia"]
[Result "1-0"]
[ECO "B22"]
[WhiteElo "1711"]
[BlackElo "1575"]
[Annotator "NA RC COMBH"]
[PlyCount "149"]
[EventDate "2024.04.14"]
[EventType "swiss"]
[EventCountry "FRA"]
[SourceTitle "playchess.com"]
[Source "ChessBase"]
[SourceQuality "1"]
[TimeControl "5400+30"]

1. e4 {[%emt 0:00:02]} c5 {[%emt 0:00:40]} 2. Nf3 {[%emt 0:00:11]} Nc6 {[%emt 0:00:05]} 3. c3 {[%emt 0:00:12]} d5 {[%emt 0:00:12]} 4. e5 {[%emt 0:14:41]} Bf5 {[%emt 0:00:29]} 5. d4 {[%emt 0:01:03]} e6 {[%emt 0:00:50]} 6. Bd3 {[%emt 0:01:45]} Bxd3 {[%emt 0:04:37]} 7. Qxd3 {[%emt 0:00:15]} Qb6 {[%emt 0:01:27]} 8. dxc5 {[%emt 0:00:40]} Bxc5 {[%emt 0:05:32]} 9. O-O {[%emt 0:00:09]} Qc7 {[%emt 0:06:07]} 10. b4 {[%emt 0:03:16]} Nxe5 {[%emt 0:05:00]} 11. Nxe5 {[%emt 0:12:04]} Bd6 {[%emt 0:18:41]} 12. Nf3 {[%emt 0:08:56]} h6 {[%emt 0:06:53]} 13. Re1 {[%emt 0:04:57]} Nf6 {[%emt 0:09:37]} 14. Na3 {[%emt 0:10:35]} a6 {[%emt 0:15:31]} 15. h3 {[%emt 0:08:24]} O-O {[%emt 0:08:42]} 16. Bb2 {[%emt 0:07:38]} Rac8 {[%emt 0:03:40]} 17. Rac1 {[%emt 0:05:28]} Rfd8 {[%emt 0:03:40]} 18. Nc2 {[%emt 0:03:23]} Ne4 {[%emt 0:05:08]} 19. Ncd4 {[%emt 0:01:51]} Nf6 {[%emt 0:02:25]} 20. g4 {[%emt 0:02:33]} e5 {[%emt 0:00:18]} 21. Nxe5 {[%emt 0:04:47]} Bxe5 {[%emt 0:00:05]} 22. Nf5 {[%emt 0:00:10]} Bf4 {[%emt 0:00:54]} 23. Rc2 {[%emt 0:01:00]} Re8 {[%emt 0:00:15]} 24. Rce2 {[%emt 0:00:27]} Bh2+ {[%emt 0:01:05]} 25. Kg2 {[%emt 0:00:31]} Rxe2 {[%emt 0:00:20]} 26. Rxe2 {[%emt 0:00:06]} Bd6 {[%emt 0:00:33]} 27. f3 {[%emt 0:00:52]} Kf8 {[%emt 0:00:40]} 28. Qd4 {[%emt 0:01:20]} Rd8 {[%emt 0:00:32]} 29. h4 {[%emt 0:00:27]} Bh2 {[%emt 0:00:15]} 30. Kh1 {[%emt 0:00:26]} Bf4 {[%emt 0:00:46]} 31. Ba3 {[%emt 0:01:11]} b5 {[%emt 0:00:12]} 32. Rg2 {[%emt 0:01:07]} Qe5 {[%emt 0:00:12]} 33. Qc5+ {[%emt 0:02:16]} Kg8 {[%emt 0:00:36]} 34. Qb6 {[%emt 0:01:08]} Re8 {[%emt 0:00:50]} 35. Qd4 {[%emt 0:03:15]} Qxd4 {[%emt 0:00:37]} 36. Nxd4 {[%emt 0:00:28]} Rc8 {[%emt 0:00:17]} 37. Bb2 {[%emt 0:00:05]} Be5 {[%emt 0:00:33]} 38. Ne2 {[%emt 0:00:29]} Kf8 {[%emt 0:00:33]} 39. Kg1 {[%emt 0:00:08]} Ra8 {[%emt 0:00:28]} 40. Kf1 {[%emt 0:01:01]} a5 {[%emt 0:00:11]} 41. bxa5 {[%emt 0:00:15]} Rxa5 {[%emt 0:00:09]} 42. a3 {[%emt 0:00:10]} Bd6 {[%emt 0:00:13]} 43. Nd4 {[%emt 0:00:19]} Bxa3 {[%emt 0:01:06]} 44. Bxa3+ {[%emt 0:00:09]} Rxa3 {[%emt 0:00:07]} 45. Rc2 {[%emt 0:00:52]} Ra5 {[%emt 0:00:24]} 46. Rb2 {[%emt 0:00:09]} Ra1+ {[%emt 0:00:29]} 47. Kg2 {[%emt 0:00:22]} Rc1 {[%emt 0:01:07]} 48. Nxb5 {[%emt 0:00:32]} Ra1 {[%emt 0:00:25]} 49. Kf2 {[%emt 0:01:17]} Ra8 {[%emt 0:00:17]} 50. Nd4 {[%emt 0:00:17]} Rc8 {[%emt 0:00:45]} 51. Rb3 {[%emt 0:00:34]} g6 {[%emt 0:00:54]} 52. Ke3 {[%emt 0:00:47]} Ke7 {[%emt 0:00:26]} 53. Kd3 {[%emt 0:00:33]} Nd7 {[%emt 0:00:29]} 54. Rb7 {[%emt 0:00:13]} Ke8 {[%emt 0:00:25]} 55. Ra7 {[%emt 0:00:42]} Ne5+ {[%emt 0:00:41]} 56. Kd2 {[%emt 0:00:23]} Nc4+ {[%emt 0:00:23]} 57. Kc2 {[%emt 0:00:49]} Ne3+ {[%emt 0:00:17]} 58. Kd3 {[%emt 0:00:06]} Nc4 {[%emt 0:00:36]} 59. Nb5 {[%emt 0:00:49]} Kf8 {[%emt 0:00:43]} 60. Kd4 {[%emt 0:00:28]} Nb6 {[%emt 0:00:29]} 61. Nd6 {[%emt 0:01:00]} Rd8 {[%emt 0:00:33]} 62. Nxf7 {[%emt 0:00:19]} Nc8 {[%emt 0:00:22]} 63. Nxd8 {[%emt 0:00:28]} Nxa7 {[%emt 0:00:15]} 64. Kxd5 {[%emt 0:00:07]} Nc8 {[%emt 0:00:46]} 65. c4 {[%emt 0:00:24]} Ke7 {[%emt 0:00:34]} 66. Nc6+ {[%emt 0:00:14]} Kf7 {[%emt 0:00:15]} 67. Ne5+ {[%emt 0:00:46]} Kf6 {[%emt 0:00:19]} 68. c5 {[%emt 0:00:19]} g5 {[%emt 0:00:21]} 69. h5 {[%emt 0:00:12]} Kg7 {[%emt 0:00:33]} 70. Ke6 {[%emt 0:00:20]} Kh7 {[%emt 0:00:25]} 71. Kd7 {[%emt 0:00:22]} Na7 {[%emt 0:00:14]} 72. c6 {[%emt 0:00:16]} Nxc6 {[%emt 0:00:29]} 73. Nxc6 {[%emt 0:00:20]} Kg7 {[%emt 0:00:06]} 74. Ke7 {[%emt 0:00:09]} Kg8 {[%emt 0:00:12]} 75. Kf6 {[%emt 0:00:11]} 1-0

[Event "French-ch U12-U14 2024"]
[Site "Agen"]
[Date "2024.04.18"]
[Round "6.15"]
[White "Fischler, Ines"]
[Black "Strievi, Leonie"]
[Result "1-0"]
[ECO "B30"]
[WhiteElo "1698"]
[BlackElo "1602"]
[Annotator "NA RC COMBH"]
[PlyCount "87"]
[EventDate "2024.04.14"]
[EventType "swiss"]
[EventCountry "FRA"]
[SourceTitle "playchess.com"]
[Source "ChessBase"]
[SourceQuality "1"]
[TimeControl "5400+30"]

1. e4 {[%emt 0:00:03]} c5 {[%emt 0:00:06]} 2. Nf3 {[%emt 0:00:05]} Nc6 {[%emt 0:00:11]} 3. Bb5 {[%emt 0:00:06]} a6 {[%emt 0:00:36]} 4. Bxc6 {[%emt 0:01:00]} bxc6 {[%emt 0:00:15]} 5. d4 {[%emt 0:09:48]} cxd4 {[%emt 0:03:34]} 6. Qxd4 {[%emt 0:00:13]} Nf6 {[%emt 0:04:18]} 7. c4 {[%emt 0:01:07]} g6 {[%emt 0:18:23]} 8. Nc3 {[%emt 0:06:51]} Bg7 {[%emt 0:01:50]} 9. Qd3 {[%emt 0:04:50]} O-O {[%emt 0:03:37]} 10. O-O {[%emt 0:00:23]} Rb8 {[%emt 0:04:38]} 11. Re1 {[%emt 0:01:05]} Qc7 {[%emt 0:04:53]} 12. h3 {[%emt 0:01:58]} d6 {[%emt 0:06:38]} 13. b3 {[%emt 0:00:45]} Rd8 {[%emt 0:02:49]} 14. Bf4 {[%emt 0:09:07]} Nh5 {[%emt 0:06:21]} 15. Bh2 {[%emt 0:02:27]} Qa5 {[%emt 0:02:42]} 16. Nd4 {[%emt 0:02:11]} c5 {[%emt 0:08:27]} 17. Nde2 {[%emt 0:00:45]} Bb7 {[%emt 0:04:40]} 18. Rac1 {[%emt 0:04:07]} Rf8 {[%emt 0:06:35]} 19. Qc2 {[%emt 0:05:39]} f5 {[%emt 0:02:27]} 20. exf5 {[%emt 0:03:46]} gxf5 {[%emt 0:03:14]} 21. Nf4 {[%emt 0:07:37]} Nxf4 {[%emt 0:02:20]} 22. Bxf4 {[%emt 0:00:04]} Rbe8 {[%emt 0:02:18]} 23. Bd2 {[%emt 0:03:37]} Qc7 {[%emt 0:02:11]} 24. Nd5 {[%emt 0:02:10]} Qd7 {[%emt 0:01:20]} 25. Bc3 {[%emt 0:03:19]} e6 {[%emt 0:01:09]} 26. Nf4 {[%emt 0:01:23]} Bh6 {[%emt 0:02:33]} 27. Bd2 {[%emt 0:03:24]} Qg7 {[%emt 0:01:53]} 28. Qc3 {[%emt 0:01:06]} e5 {[%emt 0:00:33]} 29. Nd5 {[%emt 0:00:57]} Re6 {[%emt 0:01:22]} 30. Bxh6 {[%emt 0:02:11]} Rxh6 {[%emt 0:03:37]} 31. f4 {[%emt 0:08:24]} Rg6 {[%emt 0:00:00]} 32. Rc2 {[%emt 0:00:37]} Rg3 {[%emt 0:00:00]} 33. Re3 {[%emt 0:01:11]} Rxe3 {[%emt 0:00:00]} 34. Qxe3 {[%emt 0:00:07]} exf4 {[%emt 0:00:00]} 35. Nxf4 {[%emt 0:01:10]} Qg5 {[%emt 0:00:59]} 36. Qe6+ {[%emt 0:02:10]} Kh8 {[%emt 0:00:30]} 37. Qxd6 {[%emt 0:00:06]} Rd8 {[%emt 0:00:28]} 38. Qe5+ {[%emt 0:00:32]} Kg8 {[%emt 0:00:22]} 39. Ne6 {[%emt 0:01:03]} Rd1+ {[%emt 0:00:24]} 40. Kh2 {[%emt 0:00:15]} Qe7 {[%emt 0:00:55]} 41. Qg3+ {[%emt 0:01:01]} Kf7 {[%emt 0:00:50]} 42. Re2 {[%emt 0:00:54]} Qf6 {[%emt 0:00:29]} 43. Ng5+ {[%emt 0:00:19]} Kg6 {[%emt 0:00:53]} 44. Ne4+ {[%emt 0:00:07]} 1-0

[Event "French-ch U12-U14 2024"]
[Site "Agen"]
[Date "2024.04.18"]
[Round "6.16"]
[White "Laignel, Quentin"]
[Black "Negre, Emilie"]
[Result "1-0"]
[ECO "D41"]
[WhiteElo "2023"]
[BlackElo "1922"]
[Annotator "TA"]
[PlyCount "71"]
[EventDate "2024.04.14"]
[EventType "swiss"]
[EventCountry "FRA"]
[SourceTitle "playchess.com"]
[Source "ChessBase"]
[SourceQuality "1"]
[TimeControl "5400+30"]

{[%evp 23,71,36,52,29,39,33,120,83,66,79,160,19,33,22,17,0,29,37,18,0,22,0,0,-8,0,-3,6,12,47,0,0,-22,-12,-32,0,-18,0,0,204,-181,377,384,509,508,29988,29989,29989,29987,29992,29993]} 1. d4 {[%emt 0:00:06]} Nf6 {[%emt 0:00:10]} 2. Nf3 {[%emt 0:00:51]} e6 {[%emt 0:00:06]} 3. c4 {[%emt 0:01:24]} d5 {[%emt 0:00:09]} 4. Nc3 {[%emt 0:01:00]} c5 {[%emt 0:03:14]} 5. cxd5 {[%emt 0:03:01]} Nxd5 {[%emt 0:00:16]} 6. e4 {[%emt 0:05:22]} Nxc3 {[%emt 0:00:08]} 7. bxc3 {[%emt 0:00:06]} cxd4 {[%emt 0:00:05]} 8. cxd4 {[%emt 0:00:10]} Bb4+ {[%emt 0:00:04]} 9. Bd2 {[%emt 0:00:15]} Bxd2+ {[%emt 0:00:05]} 10. Qxd2 {[%emt 0:00:10]} O-O {[%emt 0:00:48]} 11. Bc4 {[%emt 0:06:15][%cal Bf1c4,Bc4b3,Bb3c2][%mdl 32]} Nd7 {[%emt 0:02:43]} 12. O-O {[%emt 0:04:10]} Nf6 {[%emt 0:01:30]} 13. e5 {[%emt 0:10:06]} Nd5 {[%emt 0:16:43]} 14. Ng5 {[%emt 0:03:58][%cal Bf3g5,Bg5e4,Be4d6][%mdl 32]} Nb6 {[%emt 0:11:51]} ({Better is} 14... Bd7 $14) 15. Bb3 {[%emt 0:01:58] White is better.} Bd7 {[%emt 0:04:17]} 16. Bc2 {[%emt 0:15:47]} h6 {[%emt 0:00:20] [#]} (16... g6 $142) 17. Qd3 $1 {[%emt 0:00:36] White has more active pieces.} g6 $1 $11 {[%emt 0:08:04]} 18. Ne4 {[%emt 0:07:23]} Bc6 {[%emt 0:04:45]} 19. Nd6 {[%emt 0:02:08]} Qd7 {[%emt 0:12:41]} (19... Nc8 $5 20. Ne4 (20. Nxf7 Rxf7 21. Qxg6+ Kf8 $11) 20... Bxe4 21. Qxe4 Nb6 $18) 20. h4 {[%emt 0:13:04]} h5 {[%emt 0:17:40]} 21. Rfe1 {[%emt 0:04:04]} Nc8 {[%emt 0:03:23]} 22. Qg3 {[%emt 0:09:42]} Kg7 {[%emt 0:03:50]} 23. Qf4 {[%emt 0:01:14]} Nxd6 {[%emt 0:00:37]} 24. Qf6+ {[%emt 0:00:34]} Kh7 {[%emt 0:00:50]} 25. exd6 {[%emt 0:00:09] Threatening mate with Re5.} Qd8 {[%emt 0:03:07]} (25... Qxd6 $2 26. Re5 $18) 26. Qe5 {[%emt 0:01:36]} (26. Qf4 $1 $14) 26... Qxh4 {[%emt 0:06:04]} 27. Re3 {[%emt 0:00:26][%cal Be1e3,Be3g3,Bg3g5][%mdl 32] Rh3 is the strong threat.} Kh6 {[%emt 0:00:00]} 28. Rg3 {[%emt 0:02:23]} Rad8 {[%emt 0:00:00]} 29. Rd1 {[%emt 0:01:18][%cal Od4d5] Threatens to win with d5! Dancing on a razor blade.} Rd7 {[%emt 0:00:00] ...Qd8 would now be deadly.} 30. Qe3+ {[%emt 0:03:22]} Kg7 $2 {[%emt 0:00:28] [#]} (30... Kh7 $1 $11 31. Qe5 f5) 31. d5 $4 {[%emt 0:00:34][%mdl 8192]} Bxd5 $4 {[%emt 0:00:32][%mdl 8192] [#]} (31... exd5 $19 32. Rg5 Re8 (32... Rxd6 $2 {is the wrong capture.} 33. Rd4 $18) 33. Rxg6+ fxg6 34. Qxe8 Rxd6) 32. Rg5 $1 $18 {[%emt 0:00:12]} f5 {[%emt 0:01:14]} ({Much worse is} 32... Rxd6 33. Qe5+ (33. Rd4 Qxg5 34. Qxg5 Rd7 $18) 33... Kg8 34. Rd4 $18) 33. Rd4 {[%emt 0:00:19] Prevents Be4.} f4 {[%emt 0:00:19]} (33... Qxg5 $18 34. Qxg5 Kf7) 34. Rxg6+ {[%emt 0:00:18] White mates.} Kh7 {[%emt 0:00:37]} 35. Rg4+ {[%emt 0:00:51]} Kh8 {[%emt 0:00:17]} 36. Qe5+ {[%emt 0:00:10] Weighted Error Value: White=0.28 (precise) /Black=0.76.  Loses game:     	---       	Black=1      Missed win:     	White=1     	Black=1      Mistake:       	White=2     	Black=3      Inaccurate:     	White=1     	Black=4      OK:         	White=7     	Black=6      Best:        	White=1     	Black=1      Strong:       	White=1     	Black=1} 1-0